Cogmind - Beta 13 @@@ ROGUE MODE // 2024.03.02 @ 20:51:09 Player: cptwinky Result: Destroyed 0b10! Performance ------------- Evolutions (9) 4500 Regions Visited (23) 4600 Robots Destroyed (348) 1740 Value Destroyed (16595) 16595 Prototype IDs (29) 580 Alien Tech Used (7) 1400 Bonus (20517) 20517 TOTAL SCORE: 49932 Bonus ------- High Alert Combat Kills 870 Follower Combat Kills 234 Awakened Behemoth Slayer 1000 Entered Garrisons 200 Entered DSFs 500 Network Hubs Disabled 200 Met Imprinter 300 Acquired ECA 300 A7 Reached Mainframe 300 Used Core Reset Matrix 3000 Met Sigix 2000 Escaped with Sigix 10000 Win 3000 Friendly Fire -1387 Cogmind --------- Core Integrity 1099/1600 Matter 300/300 Energy 28/340 System Corruption 5% Temperature Cool (0) Movement Rolling (140) Ox3 Location Tau Ceti IV Orbit Parts ------- > --- POWER (3) -------- Particle Reactor Matter Drive > --- PROPULSION (6) --- Wheel Wheel Centrium Wheel Centrium Wheel Centrium Wheel Centrium Wheel > --- UTILITY (14) ----- Advanced Cooling System Cargo Storage Unit Experimental Signal Interpreter Advanced Targeting Computer Centrium Medium Armor Plating Medium Regenerative Plating Phase Armor Advanced Force Field Advanced Hacking Suite Improved System Shield Improved Dynamic Insulation System > --- WEAPON (2) ------- Sigix Broadsword > --- INVENTORY (30) --- Light Antimatter Reactor Particle Reactor Particle Reactor Particle Reactor Matter Compressor (250) Advanced Sensor Array Advanced Transmission Jammer Advanced Shield Generator Long-range Tractor Beam Trap Extractor (4/4 Fire) High-powered Transdimensional Reconstructor Long-range Proton Cannon HERF Cannon Phase Cannon Core Cannon Mass Driver Enhanced Gauss Cannon Heavy Gauss Cannon Long-range Missile Launcher Remote Datajack Advanced Remote Datajack Makeshift Hammer CR-A16's Behemoth Slayer Sigix Containment Pod Sigix Containment Pod Peak State ------------ > --- POWER ------------ Particle Reactor Matter Drive > --- PROPULSION ------- Wheel Wheel Centrium Wheel Centrium Wheel Centrium Wheel Centrium Wheel > --- UTILITY ---------- Advanced Cooling System Cargo Storage Unit Experimental Signal Interpreter Advanced Targeting Computer Centrium Medium Armor Plating Medium Regenerative Plating Phase Armor Advanced Force Field Advanced Hacking Suite Improved System Shield Improved Dynamic Insulation System > --- WEAPON ----------- Sigix Broadsword > --- INVENTORY -------- Light Antimatter Reactor Particle Reactor Particle Reactor Particle Reactor Matter Compressor Advanced Sensor Array Advanced Transmission Jammer Advanced Shield Generator Long-range Tractor Beam Trap Extractor High-powered Transdimensional Reconstructor Long-range Proton Cannon HERF Cannon Phase Cannon Core Cannon Mass Driver Enhanced Gauss Cannon Heavy Gauss Cannon Long-range Missile Launcher Remote Datajack Advanced Remote Datajack Makeshift Hammer CR-A16's Behemoth Slayer Sigix Containment Pod Sigix Containment Pod [Rating: 203] Favorites ----------- Power Heavy Ion Engine Engine Heavy Ion Engine Power Core Neutrino Core Reactor Particle Reactor Propulsion Compact Wheel Leg Aluminum Leg Wheel Compact Wheel Utility Improved Targeting Computer Device Improved Heat Sink Storage Cargo Storage Unit Processor Improved Targeting Computer Hackware Advanced Hacking Suite Protection Medium Regenerative Plating Artifact Phase Armor Weapon Assault Cannon Energy Gun Heavy EM Shotgun Energy Cannon Improved EM Pulse Cannon Ballistic Gun Battle Rifle Ballistic Cannon Assault Cannon Launcher Subdweller Shrapnel Launcher Special Weapon Mining Laser Impact Weapon Makeshift Hammer Slashing Weapon Sigix Broadsword Piercing Weapon CR-A16's Pointy Stick Special Melee Weapon Improved Datajack Build | -11 -10 -10 -8 -8 -7 -7 -7 -7 -6 -6 -6 -6 -6 -6 -5 -4 -4 -4 -3 -3 -2 -2 -1 ------- Run | Yrd Mat Sub Mat Gar Fac Low Low Zio Pro Fac Ext Cet Arc Hub Fac Fac Upp Upp Res Qua Res DSF Acc Slots Evolved 18 | . . . 4 . 2 . . . . 2 . . . . 2 2 . . 2 . 2 . 2 Power 2 | . . . . . . . . . . . . . . . 1 1 . . . . . . . Propulsion 4 | . . . . . 1 . . . . . . . . . 1 . . . . . 2 . . Utility 12 | . . . 4 . 1 . . . . 2 . . . . . 1 . . 2 . . . 2 Weapon . | . . . . . . . . . . . . . . . . . . . . . . . . Parts Attached 448 | 2 5 39 46 11 17 17 9 17 12 21 25 9 9 23 11 32 16 25 30 21 9 . 42 Power 31 | . . 4 5 . 1 . 1 . . . 2 2 2 . 2 3 . 1 1 3 . . 4 Engine 15 | . . 4 4 . . . 1 . . . 1 2 1 . 1 1 . . . . . . . Core 7 | . . . 1 . 1 . . . . . 1 . . . . 2 . 1 1 . . . . Reactor 9 | . . . . . . . . . . . . . 1 . 1 . . . . 3 . . 4 Propulsion 50 | 2 . 4 3 . 4 2 . 2 2 . 3 . . 4 1 5 . 1 8 1 4 . 4 Treads . | . . . . . . . . . . . . . . . . . . . . . . . . Leg . | . . . . . . . . . . . . . . . . . . . . . . . . Wheel 50 | 2 . 4 3 . 4 2 . 2 2 . 3 . . 4 1 5 . 1 8 1 4 . 4 Hover . | . . . . . . . . . . . . . . . . . . . . . . . . Flight . | . . . . . . . . . . . . . . . . . . . . . . . . Utility 180 | . 1 3 14 5 7 5 5 11 3 14 10 3 2 10 3 15 11 8 13 14 3 . 20 Device 107 | . . 1 3 3 5 4 4 5 2 9 3 . 1 5 2 14 7 4 8 11 2 . 14 Storage 5 | . 1 1 . . . . . . . 1 . . . . . . . . . . . . 2 Processor 11 | . . . 2 . 1 . . 4 . . . . . 1 . . 1 . . . 1 . 1 Hackware 6 | . . . 1 . . . . . . 2 . . . . . 1 . . . . . . 2 Protection 50 | . . 1 8 2 1 1 1 2 1 2 7 3 1 4 1 . 3 4 5 2 . . 1 Artifact 1 | . . . . . . . . . . . . . . . . . . . . 1 . . . Weapon 187 | . 4 28 24 6 5 10 3 4 7 7 10 4 5 9 5 9 5 15 8 3 2 . 14 Energy Gun 7 | . . . 6 . . . . . . . . . . . . . 1 . . . . . . Energy Cannon 23 | . . . . 3 2 . . . 4 2 2 . 1 3 1 . . 1 . . . . 4 Ballistic Gun 24 | . 1 15 4 1 . . . . . . . 1 2 . . . . . . . . . . Ballistic Cannon 53 | . 1 . 6 1 2 4 2 1 1 3 5 1 2 3 3 4 3 8 3 . . . . Launcher 34 | . 2 3 5 1 . 3 1 1 2 . 1 1 . 1 1 5 1 5 . . . . 1 Special Weapon 14 | . . 8 2 . 1 . . . . . . . . . . . . . . 1 1 . 1 Impact Weapon 12 | . . 1 1 . . 3 . 1 . 2 1 1 . 1 . . . . . . . . 1 Slashing Weapon 9 | . . 1 . . . . . . . . . . . . . . . . . 2 1 . 5 Piercing Weapon 7 | . . . . . . . . . . . . . . . . . . 1 4 . . . 2 Special Melee Weapon 4 | . . . . . . . . 1 . . 1 . . 1 . . . . 1 . . . . Unidentified Prototypes 12 | . . . 2 . . . . 5 . . . 1 . . 1 . 1 . . 1 . . 1 Corrupted Parts 2 | . . . . 1 . . . . . . . . 1 . . . . . . . . . . System Corruption 15 | . . . . 10 . . . . . . . . 5 . . . . . . . . . . Parts Lost 40 | . . . 3 1 2 . 2 . . 2 10 . 1 4 . 7 . 3 3 1 . . 1 Power 5 | . . . . 1 . . 1 . . 1 2 . . . . . . . . . . . . Propulsion 14 | . . . . . 1 . . . . . 2 . . 2 . 4 . 2 2 1 . . . Utility 15 | . . . 3 . 1 . 1 . . 1 3 . . 1 . 2 . 1 1 . . . 1 Weapon 6 | . . . . . . . . . . . 3 . 1 1 . 1 . . . . . . . Highest Loss Streak 6 | . . . 1 1 1 . 2 . . 2 6 . 1 2 . 3 . 1 3 1 . . 1 To Critical Strikes . | . . . . . . . . . . . . . . . . . . . . . . . . Average Slot Usage (%) 89 | . 98 87 85 100 99 98 100 91 89 91 83 80 79 84 94 90 93 91 89 85 84 86 87 Engine 11 | . 14 14 10 22 18 13 19 20 20 14 7 5 5 6 5 10 10 8 4 2 . . . Core 1 | . . . . 2 1 6 . . . . 1 . . . . 3 5 6 9 2 . . . Reactor 1 | . . . . . . . . . . . . . . . 5 1 . . . 8 13 13 11 Wheel 18 | . 28 28 17 14 19 20 20 14 13 11 12 13 13 16 23 18 21 17 17 18 24 26 24 Device 11 | . . 1 2 7 16 19 20 19 13 17 10 6 6 6 5 13 20 13 15 18 14 13 12 Storage 5 | . 14 3 8 7 6 6 6 6 6 5 6 6 6 6 5 5 5 5 4 4 4 4 4 Processor 13 | . . . 10 14 13 13 13 13 20 17 19 20 20 20 17 15 15 15 14 14 15 17 14 Protection 9 | . 12 11 16 13 8 4 6 3 3 6 11 13 12 13 16 10 5 11 13 8 4 4 4 Energy Cannon 2 | . . . . 7 9 . . . 12 3 1 1 5 5 3 . . . . . . . . Ballistic Gun 3 | . 25 25 6 . . . . . . . . . . . . . . . . . . . . Ballistic Cannon 4 | . . . 3 5 3 10 12 . . 5 10 9 5 5 6 9 9 9 8 1 . . . Naked Turns . | . . . . . . . . . . . . . . . . . . . . . . . . Heaviest Build 274 | 12 89 91 137 133 135 143 142 137 135 178 188 188 196 191 215 227 224 239 250 267 264 264 274 Greatest Support 96 | 26 26 36 26 26 46 44 44 48 40 28 48 38 38 40 56 60 60 64 64 58 96 96 96 Greatest Overweight (x) 62 | . 3 3 5 5 3 4 5 10 4 6 4 4 62 7 3 18 3 4 9 5 4 2 3 Average Overweight (x) 3 | . 2 . 4 4 2 3 3 3 3 4 3 4 32 4 3 3 3 3 4 3 2 2 2 Largest Inventory Capacity 30 | 8 25 25 25 25 25 25 25 25 25 30 30 30 30 30 30 30 30 30 30 30 30 30 30 Average Capacity 25 | 8 21 9 25 25 25 25 25 25 25 26 30 30 30 30 30 30 30 30 30 30 30 30 30 Most Carried 30 | 6 19 25 25 25 25 25 25 25 25 30 30 30 30 30 30 30 30 30 30 30 30 30 30 Average Carried 24 | 6 12 7 24 24 23 24 23 24 24 26 29 29 29 29 29 28 29 29 29 29 30 30 28 Final Capacity 30 | 8 25 25 25 25 25 25 25 25 25 30 30 30 30 30 30 30 30 30 30 30 30 30 30 Final Carried 30 | 6 19 25 25 25 25 25 24 25 25 30 30 30 30 30 30 30 30 30 30 30 30 30 28 Class Distribution -------------------- 39% | Hauler-Mutant 29% | Mutant 15% | Scavenger-Mutant 8% | Subdweller-Mutant 6% | Trapper-Mutant Dominant Class ---------------- Mutant | -10/Materials Mutant | -10/Subcaves Subdweller-Mutant | -8/Materials Scavenger-Mutant | -8/Garrison Scavenger-Mutant | -7/Factory Scavenger-Mutant | -7/Lower Caves Trapper-Mutant | -7/Lower Caves Mutant | -7/Zion Mutant | -6/Proximity Caves Mutant | -6/Factory Hauler-Mutant | -6/Extension Hauler-Mutant | -6/Cetus Hauler-Mutant | -6/Archives Hauler-Mutant | -6/Hub_04(d) Scavenger-Mutant | -5/Factory Scavenger-Mutant | -4/Factory Hauler-Mutant | -4/Upper Caves Hauler-Mutant | -4/Upper Caves Scavenger-Mutant | -3/Research Hauler-Mutant | -3/Quarantine Hauler-Mutant | -2/Research Hauler-Mutant | -2/DSF Hauler-Mutant | -1/Access Resources | -11 -10 -10 -8 -8 -7 -7 -7 -7 -6 -6 -6 -6 -6 -6 -5 -4 -4 -4 -3 -3 -2 -2 -1 ----------- Run | Yrd Mat Sub Mat Gar Fac Low Low Zio Pro Fac Ext Cet Arc Hub Fac Fac Upp Upp Res Qua Res DSF Acc Matter Collected 14052 | 220 279 783 1029 536 285 397 511 275 2034 606 1047 315 283 561 348 1115 780 673 981 326 80 . 588 Remotely 878 | . . . . . . . . . . . . . . 118 . . 457 149 154 . . . . Salvage Created 15465 | . 327 726 1592 354 310 265 338 . 844 252 908 382 261 1075 343 1210 97 705 1333 889 133 . 3121 Parts 688 | . 24 47 74 14 15 12 11 . 29 12 50 22 15 45 10 32 5 22 48 46 5 . 150 Haulers Intercepted 9 | . 2 . 3 . 1 . . . . . . . . 1 . . . . 1 . . . 1 Recyclers Shooed 9 | . . . 2 . . . . . . . . . . . . 4 . . 3 . . . . Parts Field Recycled 77 | . . . . . . 20 6 51 . . . . . . . . . . . . . . . Retrieved Matter 1081 | . . . . . . 212 50 819 . . . . . . . . . . . . . . . Parts Self-Destructed 74 | . . 19 . . . 11 6 1 14 . . . . . . . 4 19 . . . . . Prevented 14 | . . . . . . . . . 13 . . . . . . . 1 . . . . . . Kills | -11 -10 -10 -8 -8 -7 -7 -7 -7 -6 -6 -6 -6 -6 -6 -5 -4 -4 -4 -3 -3 -2 -2 -1 ------- Run | Yrd Mat Sub Mat Gar Fac Low Low Zio Pro Fac Ext Cet Arc Hub Fac Fac Upp Upp Res Qua Res DSF Acc Combat Hostiles Destroyed 269 | . 6 17 28 8 6 9 10 . 14 9 24 9 4 17 8 24 6 20 11 7 . . 32 Melee 38 | . . . . . . . . . . 3 . . . . . . . . . 7 . . 28 Guns 28 | . 1 14 13 . . . . . . . . . . . . . . . . . . . . Cannons 102 | . 1 . 3 5 5 3 5 . 4 3 16 2 4 15 7 11 3 5 10 . . . . AOE 86 | . 4 3 10 3 . 6 5 . 9 . 7 4 . 2 1 13 3 15 . . . . 1 Classes Destroyed 23 | . 6 2 7 . 1 1 2 . . . 1 . . 1 . . 1 1 . . . . . Worker 16 | . 1 . 3 . . . . . . . . . . 5 . . . . 1 . . . 6 Builder 11 | . . . 2 . . . . . . . 1 . . 1 . . . . 4 . . . 3 Tunneler 1 | . 1 . . . . . . . . . . . . . . . . . . . . . . Hauler 9 | . 2 . 3 . 1 . . . . . . . . 1 . . . . 1 . . . 1 Recycler 17 | . . . 3 . . . . . . . . . . 1 . 4 . . 5 2 1 . 1 Minesweeper 2 | . . . . . . . . . . . . . . . . . 2 . . . . . . Mechanic 3 | . . . 1 . . . . . . . . . . . . 1 . . 1 . . . . Operator 4 | . 2 . . . . . . . . . . . 2 . . . . . . . . . . Watcher 13 | . 1 . 2 . 1 . . . . 1 1 . . 1 . . . . 1 2 . . 3 Swarmer 39 | . . . 3 5 . 3 . . 3 7 3 6 . . . 5 4 . . . . . . Saboteur 1 | . . . . . . . . . . . . . . . . . . 1 . . . . . Grunt 102 | . 6 1 14 3 3 6 3 . 6 . 10 . . 11 5 10 2 11 1 . . . 10 Brawler 8 | . . . 1 . . . 1 . 2 . . . . . . 2 . 1 1 . . . . Duelist 3 | . . . . . . . . . . . . . . 1 . . . 2 . . . . . Sentry 35 | . . . 8 . . . 1 . . 1 6 . 4 1 1 3 . 1 3 3 . . 3 Specialist 2 | . . . 2 . . . . . . . . . . . . . . . . . . . . Hunter 17 | . . . . . . . 3 . 3 . 2 . . 2 . . . 4 . . . . 3 Programmer 39 | . . . . . 3 . 2 . . 1 2 . . 2 2 4 . . 5 4 . . 14 Behemoth 4 | . . . . . . . . . . . 1 . . . . . . . 1 . . . 2 Cetus Guard 3 | . . . . . . . . . . . . 3 . . . . . . . . . . . Subdweller 16 | . . 16 . . . . . . . . . . . . . . . . . . . . . Zionite 1 | . . 1 . . . . . . . . . . . . . . . . . . . . . Decomposer 1 | . . . . . . . . . . . . . . . . . . 1 . . . . . Samaritan 1 | . . . . . . . 1 . . . . . . . . . . . . . . . . Mutant 1 | . . . . . . 1 . . . . . . . . . . . . . . . . . Best Kill Streak 10 | . 4 3 6 3 3 3 4 . 4 5 6 4 3 6 2 6 4 10 6 4 1 . 6 Combat Bots Only 10 | . 2 3 5 3 2 3 4 . 4 5 6 4 1 3 2 5 4 10 2 2 . . 4 Max Kills in Single Turn 4 | . 4 1 3 3 1 2 2 . 2 1 4 2 1 3 1 3 2 3 2 1 1 . 1 Gunslinging . | . . . . . . . . . . . . . . . . . . . . . . . . Exploded 4 | . 2 1 2 3 . 2 2 . 2 . 4 2 . 1 1 3 2 3 . . . . 1 Melee 1 | . . . . . . . . . . 1 . . . . . . . . . 1 . . 1 Uniques/NPCs Destroyed 1 | . . . . . . . . . . . . 1 . . . . . . . . . . . A7 (-6/Cetus) Combat | -11 -10 -10 -8 -8 -7 -7 -7 -7 -6 -6 -6 -6 -6 -6 -5 -4 -4 -4 -3 -3 -2 -2 -1 -------- Run | Yrd Mat Sub Mat Gar Fac Low Low Zio Pro Fac Ext Cet Arc Hub Fac Fac Upp Upp Res Qua Res DSF Acc Hostile Shots Fired 1828 | . 8 52 143 34 17 26 47 . 41 125 385 29 35 95 60 136 32 90 95 40 . 24 314 Missed 631 | . 2 15 59 12 6 13 13 . 13 46 153 11 18 36 20 48 10 32 19 11 . 9 85 Damage Taken 16257 | . 81 798 1233 369 269 163 368 . 363 689 2221 358 402 890 795 1518 261 635 1029 355 87 572 2801 Core 1769 | . 12 99 46 26 11 . 24 . . 71 269 23 20 59 100 208 32 47 52 34 65 109 462 Absorbed by Shields 5527 | . . . . . 57 61 137 . 136 213 196 . . . . 429 273 557 769 370 . 256 2073 Redirected to Core 448 | . . . . . . . . . . . . . . . . . . . . . 22 109 317 Ignored by Resistances 375 | . . . . . . . . . . . . . . 27 19 26 . 63 240 . . . . Regen/Repaired (Parts) 3545 | . . . 26 . 156 . . . . 214 . 84 71 119 222 917 . 92 327 179 . 149 989 Core Remaining (%) 79 | 100 . 55 . 86 . . . . 95 . . . . 48 90 . . 75 . 93 . 88 68 Volleys Fired 782 | . 20 104 106 46 19 21 22 . 22 14 76 29 32 53 25 64 23 38 49 9 . . 10 Largest 2 | . 2 2 2 2 2 2 2 . 2 2 2 2 2 2 2 2 2 2 2 1 . . 1 Hottest 300 | . 55 100 100 138 138 88 88 . 138 138 113 96 113 150 114 114 110 114 114 57 . . 300 Shots Fired 1310 | . 38 156 186 59 37 33 40 . 36 27 150 35 52 96 49 108 38 53 97 9 . . 11 Gun 313 | . 34 104 134 20 . . . . . . . 9 12 . . . . . . . . . . Cannon 850 | . 2 . 32 38 36 28 33 . 28 27 149 23 40 91 48 89 34 37 97 9 . . 9 Launcher 89 | . 2 3 13 1 . 5 7 . 8 . 1 3 . 5 1 19 4 16 . . . . 1 Special 58 | . . 49 7 . 1 . . . . . . . . . . . . . . . . . 1 Kinetic 954 | . 36 104 117 31 22 33 40 . 8 20 129 24 37 46 32 105 34 30 97 9 . . . Thermal 175 | . . 49 7 . 1 . . . . 1 21 . 15 50 17 . . 7 . . . . 7 Explosive 37 | . 2 3 8 . . . . . . . . . . . . 3 4 16 . . . . 1 Electromagnetic 143 | . . . 54 28 14 . . . 28 6 . 11 . . . . . . . . . . 2 Robot Hit Streak 22 | . 6 22 14 19 20 7 9 . 13 10 14 11 13 8 6 15 20 12 12 . . . 3 Robot Miss Streak 5 | . 2 3 4 2 2 2 1 . 3 3 4 2 2 3 2 4 1 5 2 . . . 4 Penetration Max 1 | . . . . . . . . . . . 1 . . . 1 . . . 1 . . . . Secondary Targets 1 | . . . 1 . . . . . . . . . . . . . . . . . . . . Max Gunslinging Chain 1 | . . . 1 . . . . . . . . . . . . . . . . . . . . Shots Hit Robots 960 | . 26 80 128 36 25 16 27 2 21 27 98 26 38 57 31 71 23 32 73 22 1 1 99 Core Hits 620 | . 17 34 72 14 9 17 22 . 31 10 46 13 19 46 18 84 12 61 41 11 1 . 42 Critical Kills 4 | . . . 1 . . . . . . 2 1 . . . . . . . . . . . . Critical Parts Destroyed 5 | . . . 1 . . . . . . 2 1 . . . . . . . . . . . 1 Critical Strikes 66 | . . 3 4 1 2 . 1 . . 7 5 1 3 7 3 8 2 3 10 1 . . 5 Burn 1 | . . . 1 . . . . . . . . . . . . . . . . . . . . Meltdown 1 | . . . . . . . . . . . 1 . . . . . . . . . . . . Destroy 7 | . . 3 2 . . . . . . . 1 . . . . . . . . . . . 1 Blast 45 | . . . 1 . 2 . 1 . . 2 3 . 3 7 3 8 2 3 10 . . . . Corrupt 3 | . . . . 1 . . . . . 1 . 1 . . . . . . . . . . . Smash 4 | . . . . . . . . . . 4 . . . . . . . . . . . . . Sever 5 | . . . . . . . . . . . . . . . . . . . . 1 . . 4 Melee Attacks 264 | . . 3 2 . . 14 . 2 . 26 5 5 . 1 . . . 1 21 35 1 2 146 Impact 79 | . . 1 2 . . 14 . . . 26 4 5 . 1 . . . . . . . . 26 Slashing 154 | . . 2 . . . . . . . . . . . . . . . . . 35 1 2 114 Piercing 27 | . . . . . . . . . . . . . . . . . . 1 20 . . . 6 Sneak Attacks 30 | . . . . . . 1 . 2 . . 1 . . . . . . 1 5 3 1 . 16 Combat Hostiles 3 | . . . . . . . . . . . . . . . . . . . 1 . . . 2 Follow-up Attacks . | . . . . . . . . . . . . . . . . . . . . . . . . Damage Inflicted 44496 | . 918 1411 3821 1193 828 982 1347 . 1533 940 3371 820 995 2243 1112 4339 1158 3416 2956 1727 193 84 9109 Guns 3984 | . 298 1141 1881 328 . . . . . . . 172 164 . . . . . . . . . . Cannons 16486 | . 20 . 405 524 772 408 553 . 587 435 2584 412 831 1648 1046 2014 656 572 2619 . . . 400 Explosions 12651 | . 600 270 1468 341 46 470 794 . 946 . 787 236 . 595 66 2325 502 2780 . . . . 425 Melee 11298 | . . . . . . 104 . . . 505 . . . . . . . 64 337 1727 193 84 8284 Ramming . | . . . . . . . . . . . . . . . . . . . . . . . . Kinetic 21270 | . 318 1141 1924 559 399 878 1347 . 946 337 2368 547 730 1528 812 3589 656 572 2619 . . . . Thermal 3286 | . . . 355 192 56 . . . . . 1003 . 265 715 300 . . . . . . . 400 Explosive 5765 | . 600 270 490 . . . . . . . . . . . . 698 502 2780 . . . . 425 Electromagnetic 2877 | . . . 1052 442 373 . . . 587 98 . 273 . . . 52 . . . . . . . Impact 609 | . . . . . . 104 . . . 505 . . . . . . . . . . . . . Slashing 10288 | . . . . . . . . . . . . . . . . . . . . 1727 193 84 8284 Piercing 401 | . . . . . . . . . . . . . . . . . . 64 337 . . . . Highest Corruption 14 | . . . . 11 1 1 1 1 . 2 . . 5 . 3 5 1 . 14 14 1 4 5 Average Corruption 3 | . . . . 10 1 1 1 1 . 1 . . 3 . 2 2 1 . 9 14 1 2 4 Corruption Purged 15 | . . . . . . . . . . 2 . . 5 . . 7 1 . . . . . . Corruption Blocked . | . . . . . . . . . . . . . . . . . . . . . . . . Effects 111 | . . . . 9 2 6 14 2 . 2 . . . . 5 12 . . 31 . . 1 27 Message Errors 31 | . . . . 4 . 1 3 . . 2 . . . . . 4 . . 11 . . 1 5 Matter Fused 24 | . . . . 1 1 2 1 2 . . . . . . 1 . . . 8 . . . 8 Heat Flow Errors 14 | . . . . 1 . . 1 . . . . . . . 2 2 . . 4 . . . 4 Energy Discharges 16 | . . . . 1 . 1 4 . . . . . . . . 1 . . 5 . . . 4 Parts Rejected 1 | . . . . . . . . . . . . . . . . 1 . . . . . . . Data Loss (minor) 13 | . . . . 2 1 1 2 . . . . . . . 1 1 . . 2 . . . 3 Data Loss (major) 3 | . . . . . . . . . . . . . . . . 1 . . 1 . . . 1 Misfires 6 | . . . . . . 1 3 . . . . . . . . 1 . . . . . . 1 Alerts 2 | . . . . . . . . . . . . . . . 1 . . . . . . . 1 Weapon Failures 1 | . . . . . . . . . . . . . . . . 1 . . . . . . . Overload Shots . | . . . . . . . . . . . . . . . . . . . . . . . . Overflow Damage 2564 | . 74 . . 16 21 86 33 . 46 194 2 5 . . 29 180 147 61 173 187 . 14 1296 Projectiles 308 | . . . . 16 21 . 33 . . 25 2 5 . . 29 58 10 8 101 . . . . Explosions 382 | . 74 . . . . . . . 46 . . . . . . 122 137 3 . . . . . Melee 1874 | . . . . . . 86 . . . 169 . . . . . . . 50 72 187 . 14 1296 Knockbacks 86 | . . . 1 1 5 3 4 . . 12 6 2 . 8 3 14 4 2 21 . . . . Impact 4 | . . . . . . . . . . 4 . . . . . . . . . . . . . Kinetic 80 | . . . 1 1 5 3 4 . . 8 6 2 . 8 3 14 4 2 19 . . . . Secondary 2 | . . . . . . . . . . . . . . . . . . . 2 . . . . Self-Inflicted Damage 461 | . . 12 50 21 46 14 16 . 25 . 70 7 . . . 102 66 . . . . . 32 Shots 19 | . . 1 4 1 1 1 2 . 1 . 1 1 . . . 3 2 . . . . . 1 Rammed . | . . . . . . . . . . . . . . . . . . . . . . . . Targets Rammed . | . . . . . . . . . . . . . . . . . . . . . . . . Kicked . | . . . . . . . . . . . . . . . . . . . . . . . . Crushed . | . . . . . . . . . . . . . . . . . . . . . . . . Highest Temperature 510 | . 5 255 216 349 54 278 71 . 300 117 117 28 63 99 240 132 . . 510 . . . 370 Average Temperature 72 | . 3 134 49 100 27 122 26 . 95 43 33 12 26 31 115 35 . . 186 . . . 125 Received Heat Transfer 2921 | . 42 377 396 90 18 86 42 . 42 . 571 . 90 285 168 288 53 69 80 24 . . 200 Effects 8 | . . . . 2 . . . . . . . . . . 3 . . . 3 . . . . Shutdowns 2 | . . . . . . . . . . . . . . . . . . . 2 . . . . Energy Bleed 2 | . . . . 2 . . . . . . . . . . . . . . . . . . . Interference 3 | . . . . . . . . . . . . . . . 3 . . . . . . . . Damage (major) 1 | . . . . . . . . . . . . . . . . . . . 1 . . . . Siege Activations . | . . . . . . . . . . . . . . . . . . . . . . . . Robots Corrupted 8 | . . . 3 . 1 . . . 1 . . 3 . . . . . . . . . . . Combat Hostiles 7 | . . . 2 . 1 . . . 1 . . 3 . . . . . . . . . . . Parts Fried 27 | . . . 9 3 3 3 . . 6 3 . . . . . . . . . . . . . Impact Corruptions 9 | . . . . . . 1 . . . 8 . . . . . . . . . . . . . Robots Melted 1 | . . . . . . . . . . . 1 . . . . . . . . . . . . Combat Hostiles 1 | . . . . . . . . . . . 1 . . . . . . . . . . . . Parts Melted 7 | . . . . . . . . . . . 1 . . 1 . 1 . . . . . . 4 Heat Transferred 3864 | . . . 890 250 130 . . . . . 855 . 370 962 407 . . . . . . . . Parts Sabotaged . | . . . . . . . . . . . . . . . . . . . . . . . . Parts Stolen . | . . . . . . . . . . . . . . . . . . . . . . . . Parts Stripped . | . . . . . . . . . . . . . . . . . . . . . . . . Power Chain Reactions 7 | . . . 4 2 1 . . . . . . . . . . . . . . . . . . Alert | -11 -10 -10 -8 -8 -7 -7 -7 -7 -6 -6 -6 -6 -6 -6 -5 -4 -4 -4 -3 -3 -2 -2 -1 ------- Run | Yrd Mat Sub Mat Gar Fac Low Low Zio Pro Fac Ext Cet Arc Hub Fac Fac Upp Upp Res Qua Res DSF Acc Peak Influence 819 | . 210 . 387 640 364 . . . . 198 458 560 369 529 458 791 . . 320 296 100 108 819 Initial 336 | . . . . 214 336 . . . . . . 220 224 . 200 158 . . . 83 75 75 64 Average 184 | . 57 . 150 465 233 . . . . 50 124 463 50 235 283 486 . . 135 179 77 81 363 Maximum Alert Level 3 | . 1 . 1 2 1 . . . . . 2 2 1 2 2 3 . . 1 1 . . 3 Low Security (%) 63 | 100 90 . 75 . 33 . . . . 100 81 . 90 42 . 9 . . 90 61 100 100 34 Level 1 21 | . 9 . 24 32 66 . . . . . 4 28 9 32 91 14 . . 9 38 . . 22 Level 2 12 | . . . . 67 . . . . . . 13 71 . 25 8 68 . . . . . . 24 Level 3 2 | . . . . . . . . . . . . . . . . 6 . . . . . . 18 Level 4 . | . . . . . . . . . . . . . . . . . . . . . . . . Level 5 . | . . . . . . . . . . . . . . . . . . . . . . . . High Security . | . . . . . . . . . . . . . . . . . . . . . . . . Max Security . | . . . . . . . . . . . . . . . . . . . . . . . . Squads Dispatched 41 | . 3 . 4 . 3 . . . . 1 3 . . 7 2 3 . 1 3 2 . 1 8 Investigation 9 | . 1 . 1 . 1 . . . . . 1 . . 2 1 1 . . 1 . . . . Extermination 14 | . . . . . 1 . . . . 1 . . . 2 1 1 . . 2 2 . . 4 Reinforcement 17 | . 2 . 3 . 1 . . . . . 2 . . 3 . 1 . . . . . 1 4 Assault 1 | . . . . . . . . . . . . . . . . . . 1 . . . . . Garrison . | . . . . . . . . . . . . . . . . . . . . . . . . Intercept . | . . . . . . . . . . . . . . . . . . . . . . . . Searches Triggered . | . . . . . . . . . . . . . . . . . . . . . . . . Construction Impeded 4 | . . . 1 . . . . . . . . . . 1 . 1 . . . . . . 1 Haulers Reinforced 2 | . . . . . 1 . . . . . . . . . . . . . . . . . 1 Active Scanning Responses . | . . . . . . . . . . . . . . . . . . . . . . . . Cargo Convoy Interrupts 2 | . . . . . 1 . . . . 1 . . . . . . . . . . . . . Stealth | -11 -10 -10 -8 -8 -7 -7 -7 -7 -6 -6 -6 -6 -6 -6 -5 -4 -4 -4 -3 -3 -2 -2 -1 --------- Run | Yrd Mat Sub Mat Gar Fac Low Low Zio Pro Fac Ext Cet Arc Hub Fac Fac Upp Upp Res Qua Res DSF Acc Distress Signals 13 | . 2 . 4 . . . . . . 2 1 1 . 2 . . . . 1 . . . . Communications Jammed 87 | . . . . . . . . . . . . . . . . . . . 12 26 . . 49 Distress Signals 86 | . . . . . . . . . . . . . . . . . . . 11 26 . . 49 Times Spotted 375 | . 16 18 40 12 11 9 9 . 15 15 34 11 8 31 13 22 7 23 19 9 1 4 48 Peak Tracking Total 10 | . 3 3 4 7 3 3 4 . 4 5 6 5 1 6 5 4 4 10 2 2 1 3 6 Tactical Retreats 27 | . 1 . . 2 . 1 . . 1 1 1 . . 5 3 . 1 1 . . . 2 8 Traps | -11 -10 -10 -8 -8 -7 -7 -7 -7 -6 -6 -6 -6 -6 -6 -5 -4 -4 -4 -3 -3 -2 -2 -1 ------- Run | Yrd Mat Sub Mat Gar Fac Low Low Zio Pro Fac Ext Cet Arc Hub Fac Fac Upp Upp Res Qua Res DSF Acc Traps Triggered 17 | . . 1 2 2 2 . . . . . 5 . . . . . . . . 2 1 1 1 Indirectly . | . . . . . . . . . . . . . . . . . . . . . . . . Trap Hack Attempts 15 | . . . . . . . . . . . . . . 15 . . . . . . . . . Triggered . | . . . . . . . . . . . . . . . . . . . . . . . . Disarmed . | . . . . . . . . . . . . . . . . . . . . . . . . Reprogrammed 4 | . 1 . . . . . . . . . . . . 3 . . . . . . . . . Reused 13 | . 1 1 . 1 3 . . . . 4 . . . 3 . . . . . . . . . Traps Extracted 3 | . . . . . . . . . . . . . . 3 . . . . . . . . . Installed 12 | . . 1 . 1 3 . . . . 4 . . . 3 . . . . . . . . . Triggered 24 | . 1 4 . 1 5 . . . . 4 . . . 3 . . 6 . . . . . . Most Traps Carried 9 | . . 1 1 9 9 7 7 7 4 4 . . . 3 . . 4 4 4 4 4 4 4 Objects Rigged 2 | . 2 . . . . . . . . . . . . . . . . . . . . . . Exploded 1 | . 1 . . . . . . . . . . . . . . . . . . . . . . Machines | -11 -10 -10 -8 -8 -7 -7 -7 -7 -6 -6 -6 -6 -6 -6 -5 -4 -4 -4 -3 -3 -2 -2 -1 ---------- Run | Yrd Mat Sub Mat Gar Fac Low Low Zio Pro Fac Ext Cet Arc Hub Fac Fac Upp Upp Res Qua Res DSF Acc Machines Disabled 53 | . 2 1 4 5 . . . . . 1 6 7 2 2 . 9 1 . 1 8 . . 4 Max in Single Turn 4 | . 2 1 1 1 . . . . . 1 3 4 1 1 . 4 1 . 1 1 . . 1 Garrison Access 3 | . . . . . . . . . . 1 . . . 1 . . . . . . . . 1 Garrison Relay 2 | . . . . 2 . . . . . . . . . . . . . . . . . . . Network Hub 1 | . . . . . . . . . . . . . . 1 . . . . . . . . . Energy Cycler 2 | . . . . . . . . . . . 2 . . . . . . . . . . . . Machines Repaired . | . . . . . . . . . . . . . . . . . . . . . . . . Machines Dismantled . | . . . . . . . . . . . . . . . . . . . . . . . . Machines Sabotaged 1 | . . . . . . . . . . . . . . 1 . . . . . . . . . Overloaded Fab Kills . | . . . . . . . . . . . . . . . . . . . . . . . . Hacking | -11 -10 -10 -8 -8 -7 -7 -7 -7 -6 -6 -6 -6 -6 -6 -5 -4 -4 -4 -3 -3 -2 -2 -1 --------- Run | Yrd Mat Sub Mat Gar Fac Low Low Zio Pro Fac Ext Cet Arc Hub Fac Fac Upp Upp Res Qua Res DSF Acc Machines Accessed 65 | . 8 1 7 . 4 . . . . 8 9 . . 4 3 3 . . 5 5 2 . 6 Terminals 42 | . 5 . 4 . 3 . . . . 4 8 . . 3 2 1 . . 1 4 2 . 5 Fabricators 4 | . . . . . . . . . . 2 . . . . . 1 . . 1 . . . . Repair Stations 7 | . 1 . 1 . 1 . . . . 1 . . . . 1 1 . . 1 . . . . Recycling Units 6 | . 2 . 1 . . . . . . . 1 . . . . . . . 2 . . . . Scanalyzers 1 | . . . . . . . . . . . . . . . . . . . . 1 . . . Garrison Access 4 | . . . 1 . . . . . . 1 . . . 1 . . . . . . . . 1 Total Hacks 184 | . 25 1 22 . 14 . . . . 17 24 . . 10 9 15 . . 11 12 6 . 18 Successful 71 | . 14 1 9 . 9 . . . . 9 5 . . 3 1 8 . . 3 5 1 . 3 Failed 113 | . 11 . 13 . 5 . . . . 8 19 . . 7 8 7 . . 8 7 5 . 15 Catastrophic 32 | . 1 . 2 . 4 . . . . 1 4 . . 2 3 3 . . 4 4 . . 4 Database Lockouts . | . . . . . . . . . . . . . . . . . . . . . . . . Manual 77 | . 13 . 12 . 4 . . . . 3 14 . . 6 3 4 . . 3 4 3 . 8 Terminals 108 | . 17 . 11 . 8 . . . . 6 22 . . 6 5 3 . . 2 5 6 . 17 Fabricators 12 | . . . . . . . . . . 5 . . . . . 3 . . 4 . . . . Repair Stations 30 | . 3 . 3 . 6 . . . . 4 . . . . 4 9 . . 1 . . . . Recycling Units 14 | . 5 . 3 . . . . . . . 2 . . . . . . . 4 . . . . Scanalyzers 7 | . . . . . . . . . . . . . . . . . . . . 7 . . . Garrison Access 12 | . . . 5 . . . . . . 2 . . . 4 . . . . . . . . 1 Terminal Hacks 21 | . 8 1 2 . 2 . . . . 1 3 . . . . 1 . . . 1 1 . 1 Record 1 | . . . . . . . . . . . . . . . . . . . . 1 . . . Part Schematic 2 | . 1 . . . . . . . . . 1 . . . . . . . . . . . . Robot Analysis 4 | . 3 . 1 . . . . . . . . . . . . . . . . . . . . Prototype ID Bank 1 | . 1 . . . . . . . . . . . . . . . . . . . . . . Open Door 2 | . . . . . . . . . . 1 . . . . . . . . . . . . 1 Open DSF 1 | . . . . . . . . . . . . . . . . . . . . . 1 . . Branch Access Points 1 | . . . . . . . . . . . . . . . . 1 . . . . . . . Garrison Index 1 | . . . . . 1 . . . . . . . . . . . . . . . . . . Unreport Threat 1 | . . . 1 . . . . . . . . . . . . . . . . . . . . Locate Traps 4 | . 1 . . . 1 . . . . . 2 . . . . . . . . . . . . Reprogram Traps 1 | . 1 . . . . . . . . . . . . . . . . . . . . . . Registered Components 1 | . 1 . . . . . . . . . . . . . . . . . . . . . . Derelict Proto ID Bank 1 | . . 1 . . . . . . . . . . . . . . . . . . . . . Fabricator Hacks 4 | . . . . . . . . . . 3 . . . . . . . . 1 . . . . Network Status 2 | . . . . . . . . . . 1 . . . . . . . . 1 . . . . Load Schematic 1 | . . . . . . . . . . 1 . . . . . . . . . . . . . Build 1 | . . . . . . . . . . 1 . . . . . . . . . . . . . Repair Station Hacks 17 | . 1 . 2 . 6 . . . . 2 . . . . . 6 . . . . . . . Scan Component 8 | . . . 1 . 3 . . . . 1 . . . . . 3 . . . . . . . Repair 8 | . . . 1 . 3 . . . . 1 . . . . . 3 . . . . . . . Refit 1 | . 1 . . . . . . . . . . . . . . . . . . . . . . Recycling Unit Hacks 4 | . 2 . 2 . . . . . . . . . . . . . . . . . . . . Process 1 | . . . 1 . . . . . . . . . . . . . . . . . . . . Retrieve Matter 1 | . . . 1 . . . . . . . . . . . . . . . . . . . . Retrieve Components 2 | . 2 . . . . . . . . . . . . . . . . . . . . . . Scanalyzer 2 | . . . . . . . . . . . . . . . . . . . . 2 . . . Insert Component 2 | . . . . . . . . . . . . . . . . . . . . 2 . . . Garrison Access Hacks 4 | . . . 1 . . . . . . 1 . . . 1 . . . . . . . . 1 Unlock Access 1 | . . . 1 . . . . . . . . . . . . . . . . . . . . Seal Access 3 | . . . . . . . . . . 1 . . . 1 . . . . . . . . 1 Unauthorized Hacks 19 | . 3 . 2 . 1 . . . . 2 2 . . 2 1 1 . . 2 2 . . 1 Terminals 12 | . 1 . 2 . 1 . . . . 1 1 . . 2 1 1 . . . 1 . . 1 Track 1 | . . . . . . . . . . . . . . . . . . . . 1 . . . Assimilate 1 | . . . 1 . . . . . . . . . . . . . . . . . . . . Botnet 7 | . . . 1 . 1 . . . . 1 1 . . . 1 1 . . . . . . 1 Detonate 1 | . 1 . . . . . . . . . . . . . . . . . . . . . . Sabotage 2 | . . . . . . . . . . . . . . 2 . . . . . . . . . Fabricators 3 | . . . . . . . . . . 1 . . . . . . . . 2 . . . . Liberate 2 | . . . . . . . . . . 1 . . . . . . . . 1 . . . . Fabnet 1 | . . . . . . . . . . . . . . . . . . . 1 . . . . Repair Stations . | . . . . . . . . . . . . . . . . . . . . . . . . Recycling Units 3 | . 2 . . . . . . . . . 1 . . . . . . . . . . . . Reject 3 | . 2 . . . . . . . . . 1 . . . . . . . . . . . . Scanalyzers 1 | . . . . . . . . . . . . . . . . . . . . 1 . . . Researchers 1 | . . . . . . . . . . . . . . . . . . . . 1 . . . Garrison Access . | . . . . . . . . . . . . . . . . . . . . . . . . Data Cores Recovered . | . . . . . . . . . . . . . . . . . . . . . . . . Used . | . . . . . . . . . . . . . . . . . . . . . . . . Hacking Detections 56 | . 8 . 7 . 4 . . . . 5 9 . . 3 3 3 . . 4 4 1 . 5 Full Trace Events 7 | . 1 . 1 . 1 . . . . . 1 . . . 1 1 . . 1 . . . . Feedback Events 1 | . . . . . . . . . . . . . . . . . . . 1 . . . . Corruption 1 | . . . . . . . . . . . . . . . . . . . 1 . . . . Feedback Blocked . | . . . . . . . . . . . . . . . . . . . . . . . . Robot Schematics Acquired . | . . . . . . . . . . . . . . . . . . . . . . . . Robots Built . | . . . . . . . . . . . . . . . . . . . . . . . . Authchips . | . . . . . . . . . . . . . . . . . . . . . . . . Time . | . . . . . . . . . . . . . . . . . . . . . . . . Total Robot Build Rating . | . . . . . . . . . . . . . . . . . . . . . . . . Part Schematics Acquired 2 | . 1 . . . . . . . . . 1 . . . . . . . . . . . . Parts Built 1 | . . . . . . . . . . 1 . . . . . . . . . . . . . Authchips 1 | . . . . . . . . . . 1 . . . . . . . . . . . . . Time 51 | . . . . . . . . . . 51 . . . . . . . . . . . . . Total Part Build Rating 1 | . . . . . . . . . . 1 . . . . . . . . . . . . . Parts Repaired 8 | . . . 1 . 3 . . . . 1 . . . . . 3 . . . . . . . Time 357 | . . . 26 . 127 . . . . 14 . . . . . 190 . . . . . . . Parts Recycled . | . . . . . . . . . . . . . . . . . . . . . . . . Recycled Matter 61 | . . . 61 . . . . . . . . . . . . . . . . . . . . Retrieved Matter 61 | . . . 61 . . . . . . . . . . . . . . . . . . . . Retrieved Components 10 | . 10 . . . . . . . . . . . . . . . . . . . . . . Parts Scanalyzed 1 | . . . . . . . . . . . . . . . . . . . . 1 . . . Part Schematics Acquired . | . . . . . . . . . . . . . . . . . . . . . . . . Parts Damaged 1 | . . . . . . . . . . . . . . . . . . . . 1 . . . Bothacking | -11 -10 -10 -8 -8 -7 -7 -7 -7 -6 -6 -6 -6 -6 -6 -5 -4 -4 -4 -3 -3 -2 -2 -1 ------------ Run | Yrd Mat Sub Mat Gar Fac Low Low Zio Pro Fac Ext Cet Arc Hub Fac Fac Upp Upp Res Qua Res DSF Acc Used RIF Installer . | . . . . . . . . . . . . . . . . . . . . . . . . Robots Hacked 4 | . . . . . . . . 2 . . 1 . . . . . . . 1 . . . . Non-combat . | . . . . . . . . . . . . . . . . . . . . . . . . Combat 3 | . . . . . . . . 2 . . 1 . . . . . . . . . . . . Robot Hacks Applied 3 | . . . . . . . . 2 . . 1 . . . . . . . . . . . . parse_system 3 | . . . . . . . . 2 . . 1 . . . . . . . . . . . . Manual 1 | . . . . . . . . . . . . . . . . . . . 1 . . . . Relay Couplers Released 6 | . . . . 6 . . . . . . . . . . . . . . . . . . . Machine Destruction 6 | . . . . 6 . . . . . . . . . . . . . . . . . . . Fabnet Peak Effective % 3 | . . . . . . . . . . . . . . . . . . . . . 3 3 1 Robots Rewired 13 | . . . . . . . . . . . 10 . . . . . 1 2 . . . . . Allies Hacked 1 | . . . . . . . . . . . . . . . . . . . 1 . . . . Hacks Repelled . | . . . . . . . . . . . . . . . . . . . . . . . . Allies | -11 -10 -10 -8 -8 -7 -7 -7 -7 -6 -6 -6 -6 -6 -6 -5 -4 -4 -4 -3 -3 -2 -2 -1 -------- Run | Yrd Mat Sub Mat Gar Fac Low Low Zio Pro Fac Ext Cet Arc Hub Fac Fac Upp Upp Res Qua Res DSF Acc Total Allies 17 | . . . 1 . . . . . . . 12 . . . . . 1 2 1 . . . . Largest Group 8 | . . . 1 . . . . . . . 8 4 . . . . 1 2 2 . . . . Highest-Rated Group 241 | . . . 10 . . . . . . . 241 217 . . . . 49 79 116 . . . . Highest-Rated Ally 146 | . . . 10 . . . . . . . 146 146 . . . . 49 49 116 . . . . Total Orders 5 | . . . 1 . . . . . . . . . . . . . 4 . . . . . . STAY 1 | . . . 1 . . . . . . . . . . . . . . . . . . . . EXPLORE 3 | . . . . . . . . . . . . . . . . . 3 . . . . . . RETURN 1 | . . . . . . . . . . . . . . . . . 1 . . . . . . Ally Attacks 77 | . . . . . . . . . . . 43 16 . . . . 1 10 7 . . . . Total Damage 1940 | . . . . . . . . . . . 846 370 . . . . 49 247 428 . . . . Kills 7 | . . . . . . . . . . . 2 4 . . . . . 1 . . . . . Allies Corrupted 1 | . . . . . . . . . . . . . . . . . . . 1 . . . . Allies Melted . | . . . . . . . . . . . . . . . . . . . . . . . . Intel | -11 -10 -10 -8 -8 -7 -7 -7 -7 -6 -6 -6 -6 -6 -6 -5 -4 -4 -4 -3 -3 -2 -2 -1 ------- Run | Yrd Mat Sub Mat Gar Fac Low Low Zio Pro Fac Ext Cet Arc Hub Fac Fac Upp Upp Res Qua Res DSF Acc Robot Analysis Total 4 | . 3 . 1 . . . . . . . . . . . . . . . . . . . . Derelict Logs Recovered 9 | . . 2 . . . 2 . . 2 . . . . . . . 2 1 . . . . . Drone Launches 3 | . . . . . . . . . . . . . . . . . 3 . . . . . . Drone Recoveries 1 | . . . . . . . . . . . . . . . . . 1 . . . . . . Decoded 0b10 Intel 20 | . . . . . . . . . . . . . . . . . . . . . 3 2 15 Traps 14 | . . . . . . . . . . . . . . . . . . . . . 2 1 11 Emergency Access 6 | . . . . . . . . . . . . . . . . . . . . . 1 1 4 Exploration | -11 -10 -10 -8 -8 -7 -7 -7 -7 -6 -6 -6 -6 -6 -6 -5 -4 -4 -4 -3 -3 -2 -2 -1 ------------- Run | Yrd Mat Sub Mat Gar Fac Low Low Zio Pro Fac Ext Cet Arc Hub Fac Fac Upp Upp Res Qua Res DSF Acc Turns Passed 36773 | 7 1088 4043 2300 655 1163 1874 1170 2703 3456 1201 2008 361 4021 823 772 1104 2243 1702 1105 861 210 84 1819 Spaces Moved 17633 | 5 726 2677 1088 326 629 1279 736 1327 1470 560 950 100 238 301 446 528 1432 997 502 407 126 59 724 Core 115 | . . . . . . . . . . . . . 115 . . . . . . . . . . Treads . | . . . . . . . . . . . . . . . . . . . . . . . . Legs . | . . . . . . . . . . . . . . . . . . . . . . . . Wheels 17518 | 5 726 2677 1088 326 629 1279 736 1327 1470 560 950 100 123 301 446 528 1432 997 502 407 126 59 724 Hover . | . . . . . . . . . . . . . . . . . . . . . . . . Flight . | . . . . . . . . . . . . . . . . . . . . . . . . Fastest Speed 90 | 90 90 100 150 150 122 119 122 129 140 160 141 150 150 150 140 142 142 142 145 140 125 129 122 Average Speed 159 | 90 124 110 152 153 129 132 147 144 147 169 145 150 1599 160 140 154 142 152 159 150 132 129 131 Slowest Speed 3150 | 90 135 135 165 165 132 146 165 240 160 190 150 150 3150 195 140 360 142 160 225 168 155 129 140 Overloaded Moves . | . . . . . . . . . . . . . . . . . . . . . . . . Propulsion Burnouts . | . . . . . . . . . . . . . . . . . . . . . . . . Robots Hopped . | . . . . . . . . . . . . . . . . . . . . . . . . Cave-ins Triggered . | . . . . . . . . . . . . . . . . . . . . . . . . Exploration Rate (%) 53 | 2 97 93 71 42 15 92 79 85 70 15 88 58 79 33 13 11 98 75 15 44 5 77 18 Regions Visited 23 Branch Regions 12 Pre-discovered Areas 8 | . . 1 . . . 1 . 4 1 . . . . . . . . 1 . . . . . Known Exits Taken 18 | . . . 1 . 1 1 1 1 1 1 1 1 1 1 1 1 1 1 1 1 1 . . Unknown Exits Taken 3 | 1 1 1 . . . . . . . . . . . . . . . . . . . . . Scrap Searched 30 | . . 8 . . . 5 4 3 3 . . . . . . . 4 3 . . . . . Spaces Dug 126 | . 6 4 6 9 . 46 . . . 2 1 1 . 2 . 17 3 16 3 4 . 1 5 Terrain Destroyed 1027 | . 40 9 106 10 5 80 93 . 104 2 65 3 5 49 18 169 41 167 31 7 . 1 22 Melee 26 | . . . . . . 13 . . . 1 1 1 . 1 . . . . 1 2 . 1 5 Projectile 144 | . . . 6 1 1 1 2 . . 1 17 2 5 13 12 17 8 22 30 5 . . 1 AOE 857 | . 40 9 100 9 4 66 91 . 104 . 47 . . 35 6 152 33 145 . . . . 16 Terrain Rammed . | . . . . . . . . . . . . . . . . . . . . . . . . Walls Destroyed . | . . . . . . . . . . . . . . . . . . . . . . . . Machines Disabled . | . . . . . . . . . . . . . . . . . . . . . . . . Actions | -11 -10 -10 -8 -8 -7 -7 -7 -7 -6 -6 -6 -6 -6 -6 -5 -4 -4 -4 -3 -3 -2 -2 -1 --------- Run | Yrd Mat Sub Mat Gar Fac Low Low Zio Pro Fac Ext Cet Arc Hub Fac Fac Upp Upp Res Qua Res DSF Acc Total 24460 | 6 875 3512 1536 422 937 1407 778 2116 2723 756 1423 270 398 539 547 706 1600 1109 668 582 166 63 1321 Wait 4623 | . 102 614 251 23 235 62 7 729 1203 109 183 119 115 132 52 57 111 34 44 55 26 3 357 Move 17610 | 4 725 2676 1088 325 628 1278 735 1326 1469 559 949 99 237 300 445 527 1431 996 501 406 125 58 723 Hop . | . . . . . . . . . . . . . . . . . . . . . . . . Pick Up 193 | . 18 26 20 4 12 3 3 10 8 13 15 4 2 7 6 10 7 2 7 8 . . 8 Fast Attach 95 | . . 8 10 . 2 2 . 6 1 3 4 2 1 2 2 13 3 1 7 17 4 . 7 Attach 78 | . . . 10 . 5 1 2 3 3 6 9 1 2 6 2 4 1 2 4 2 . . 15 Detach 43 | . . 2 4 . . . . 5 . 2 3 . 1 1 . 2 1 . 2 3 1 . 16 Swap 278 | 2 5 31 26 11 10 14 7 8 8 12 12 6 6 15 7 15 13 22 19 3 5 . 21 Drop 246 | . 5 33 19 4 7 12 2 27 9 8 11 5 2 4 8 14 9 3 14 28 4 . 18 Fire 782 | . 20 104 106 46 19 21 22 . 22 14 76 29 32 53 25 64 23 38 49 9 . . 10 Melee 264 | . . 3 2 . . 14 . 2 . 26 5 5 . 1 . . . 1 21 35 1 2 146 Ram . | . . . . . . . . . . . . . . . . . . . . . . . . Kick . | . . . . . . . . . . . . . . . . . . . . . . . . Crush . | . . . . . . . . . . . . . . . . . . . . . . . . Escape Stasis 72 | . . . . 8 16 . . . . . 32 . . . . . . . . 16 . . . Rewire 135 | . . . . . . . . . . . 124 . . . . . 1 10 . . . . . Trap 27 | . . 1 . 1 3 . . . . 4 . . . 18 . . . . . . . . . Miscellaneous 14 | . . 14 . . . . . . . . . . . . . . . . . . . . . Route ------- -11/Scrapyard -10/Materials (discovered 6 exits: [*Mat x3] / [*Min x2] / *Sub) -10/Subcaves (discovered 2 exits: *Mat x2) -8/Materials (discovered 4 exits: *Fac x3 / Gar) -8/Garrison -7/Factory -7/Lower Caves -7/Lower Caves (discovered 2 exits: *Fac / *Zio) -7/Zion -6/Proximity Caves -6/Factory (discovered 3 exits: *Low x2 / *Ext) -6/Extension (discovered 2 exits: *Fac / *Cet) -6/Cetus -6/Archives (discovered 3 exits: *Fac / *Hub x2) -6/Hub_04(d) -5/Factory -4/Factory (discovered 4 exits: *Res / *Upp x2 / Arm) -4/Upper Caves -4/Upper Caves (discovered 2 exits: *Res / *Zhi) -3/Research -3/Quarantine -2/Research -2/DSF -1/Access Tau Ceti IV Orbit History --------- Turn | Location | Event 4 | -11/Scrapyard | Discovered new exit (range 3) 8 | -11/Scrapyard | Entered Materials 46 | -10/Materials | Discovered new exit (range 11) 96 | -10/Materials | Met 8R-AWN 145 | -10/Materials | Discovered new exit (range 9) 307 | -10/Materials | Build established: Mutant 359 | -10/Materials | Discovered new exit (range 8) 619 | -10/Materials | Discovered new exit (range 5) 992 | -10/Materials | Discovered new exit (range 15) 1087 | -10/Materials | Discovered new exit (range 8) 1096 | -10/Materials | Entered Subcaves 1101 | -10/Subcaves | Learned 8 Materials zone layouts 1137 | -10/Subcaves | Learned location of Zion (-7) 1137 | -10/Subcaves | Met a Zionite searching for "candidates" 1139 | -10/Subcaves | Shifting Twisted Machinery released Scrap Shield 1294 | -10/Subcaves | A swath of the cavern ceiling suddenly collapsed 1912 | -10/Subcaves | Learned Materials terminal intel 2355 | -10/Subcaves | Visited 4L-MR0's lab 2372 | -10/Subcaves | Found Power Bank 2656 | -10/Subcaves | Shifting Twisted Machinery released Flamer 2678 | -10/Subcaves | Shifting Twisted Machinery released Battle Rifle 2695 | -10/Subcaves | Shifting Twisted Machinery released Sub. Monowheel 2805 | -10/Subcaves | Shifting Twisted Machinery released Spk. Treads 2984 | -10/Subcaves | Discovered new exit (range 12) 3250 | -10/Subcaves | A swath of the cavern ceiling suddenly collapsed 3421 | -10/Subcaves | Build established: Subdweller-Mutant 3462 | -10/Subcaves | Discovered new exit (range 11) 4003 | -10/Subcaves | A Subdweller sparked back to life 4062 | -10/Subcaves | Found Power Bank 4390 | -10/Subcaves | Build established: Mutant 4866 | -10/Subcaves | Build established: Subdweller-Mutant 5139 | -10/Subcaves | Entered Materials 5139 | -8/Materials | Evolved 4 slots: Utility x4 5140 | -8/Materials | Identified exit to Factory 5141 | -8/Materials | Loaded intel: 12 terminal locations 6113 | -8/Materials | Discovered exit to Factory (range 11) 7045 | -8/Materials | Repaired Com. Wheel 7095 | -8/Materials | Build established: Mutant 7195 | -8/Materials | Attached Power Bank, gained temporary slots: Power x3 7439 | -8/Materials | Identified exit to Garrison 7439 | -8/Materials | Entered Garrison 7503 | -8/Garrison | Build established: Scavenger-Mutant 7520 | -8/Garrison | Triggered checkpoint 7571 | -8/Garrison | Garrison Relay disabled 7709 | -8/Garrison | Triggered checkpoint 7837 | -8/Garrison | Discovered exit to Factory (range 18) 7916 | -8/Garrison | System corruption reached 10% 7990 | -8/Garrison | Triggered checkpoint 8011 | -8/Garrison | Garrison Relay disabled 8094 | -8/Garrison | Entered Factory 8094 | -7/Factory | Evolved 2 slots: Propulsion x1, Utility x1 8203 | -7/Factory | Discovered new exit (range 10) 8221 | -7/Factory | Identified exit to Lower Caves 8808 | -7/Factory | Cargo convoy interrupted 8868 | -7/Factory | Repaired Imp. Shield Generator? 8914 | -7/Factory | Repaired Med. Armor Plating 8972 | -7/Factory | Repaired Hvy. Ion Engine 8995 | -7/Factory | Build established: Trapper-Mutant 9257 | -7/Factory | Entered Lower Caves 9272 | -7/Lower Caves | Met a Warlord Commander 9273 | -7/Lower Caves | Learned location of Warlord (-5) 9274 | -7/Lower Caves | Warlord Commander delivered Encrypted Comm Array 9275 | -7/Lower Caves | Found Encrypted Comm Array 9312 | -7/Lower Caves | Build established: Scavenger-Mutant 9775 | -7/Lower Caves | Encountered a Warlord checkpoint 10407 | -7/Lower Caves | Spotted B-75 Beast 10480 | -7/Lower Caves | Learned Factory terminal intel 10493 | -7/Lower Caves | Discovered new exit (range 9) 10590 | -7/Lower Caves | Identified exit to Lower Caves 10619 | -7/Lower Caves | Learned Factory emergency access door positions 11131 | -7/Lower Caves | Entered another Lower Caves area 11133 | -7/Lower Caves | Ambushed by research squad 11173 | -7/Lower Caves | Attracted the attention of an 0b10 checkpoint 11176 | -7/Lower Caves | Build established: Trapper-Mutant 11191 | -7/Lower Caves | Discovered new exit (range 12) 12074 | -7/Lower Caves | Discovered new exit (range 14) 12297 | -7/Lower Caves | Identified exit to Zion 12301 | -7/Lower Caves | Entered Zion 12377 | -7/Zion | System corruption cleaned by Quarantine Array 12474 | -7/Zion | Discovered new exit (range 14) 12692 | -7/Zion | Found Prototype Device 12701 | -7/Zion | Identified Phasing AFG 12856 | -7/Zion | Build established: Mutant 12889 | -7/Zion | Learned location of Armory (-4) 13174 | -7/Zion | Found CR-A16's Pointy Stick 14785 | -7/Zion | Found Prototype Processor 14785 | -7/Zion | Identified Exp. Signal Interpreter 14789 | -7/Zion | Found Prototype Processor 14789 | -7/Zion | Identified Exp. Melee Analysis Suite 14795 | -7/Zion | Found Prototype Processor 14795 | -7/Zion | Identified Exp. Armor Integrity Analyzer 14798 | -7/Zion | Found Prototype Processor 14798 | -7/Zion | Identified Exp. Core Analyzer 14998 | -7/Zion | Identified exit to Proximity Caves 15004 | -7/Zion | Entered Proximity Caves 15250 | -6/Proximity Caves | Learned 12 Factory zone layouts 15489 | -6/Proximity Caves | Discovered new exit (range 10) 15503 | -6/Proximity Caves | Identified exit to Factory 15951 | -6/Proximity Caves | Received a Behemoth hack from an annoying Tinkerer 18460 | -6/Proximity Caves | Entered Factory 18460 | -6/Factory | Evolved 2 slots: Utility x2 18461 | -6/Factory | Identified exit to Extension 18461 | -6/Factory | Identified exit to Lower Caves 18463 | -6/Factory | Loaded intel: 28 terminal locations 18835 | -6/Factory | Repaired Imp. Medium Armor Plating 19250 | -6/Factory | Fabricated Cargo Storage Unit? 19514 | -6/Factory | Cargo convoy interrupted 19550 | -6/Factory | Build established: Hauler-Mutant 19633 | -6/Factory | Discovered exit to Lower Caves (range 13) 19661 | -6/Factory | Entered Extension 20134 | -6/Extension | Rescued a captive Derelict 20543 | -6/Extension | Spotted B-75 Beast 20558 | -6/Extension | Allies destroyed B-75 Beast 20562 | -6/Extension | Spotted B-75 Beast 20586 | -6/Extension | Destroyed B-75 Beast 20613 | -6/Extension | Lost 8 allies 20689 | -6/Extension | Lost 6 parts (1p1n2u2w) 21350 | -6/Extension | Energy Cycler disabled 21598 | -6/Extension | Rescued A7 21636 | -6/Extension | Discovered new exit (range 10) 21637 | -6/Extension | Discovered new exit (range 6) 21665 | -6/Extension | Identified exit to Cetus 21669 | -6/Extension | Entered Cetus 21669 | -6/Cetus | Accompanied by 4 allies (A7) 21674 | -6/Cetus | Acquired a Cetus Manufacturing Module code from A7 21689 | -6/Cetus | Spotted Cetus Guard 21689 | -6/Cetus | Spotted Cetus Guard 21696 | -6/Cetus | Destroyed Cetus Guard 21696 | -6/Cetus | Spotted Cetus Guard 21700 | -6/Cetus | Allies destroyed Cetus Guard 21700 | -6/Cetus | Spotted Cetus Guard 21707 | -6/Cetus | Destroyed Cetus Guard 21711 | -6/Cetus | Destroyed Cetus Guard 21773 | -6/Cetus | Cetus Manufacturing Module disabled 21813 | -6/Cetus | Escorted A7 to Cetus Mainframe 21835 | -6/Cetus | Murdered A7 21835 | -6/Cetus | Destroyed A7 21862 | -6/Cetus | Found Med. Regenerative Plating 21866 | -6/Cetus | Extracted ID and sensor layout for unrecognized location from A7's data core 21884 | -6/Cetus | Discovered new exit (range 16) 21907 | -6/Cetus | Identified exit to Archives 22030 | -6/Cetus | Entered Archives 22342 | -6/Archives | Discovered new exit (range 16) 22360 | -6/Archives | Discovered new exit (range 15) 22380 | -6/Archives | Discovered new exit (range 16) 23526 | -6/Archives | Identified exit to Hub_04(d) 26051 | -6/Archives | Entered Hub_04(d) 26743 | -6/Hub_04(d) | Discovered new exit (range 9) 26797 | -6/Hub_04(d) | Identified exit to Factory 26837 | -6/Hub_04(d) | Spotted B-75 Beast 26843 | -6/Hub_04(d) | Network Hub disabled 26870 | -6/Hub_04(d) | Core integrity fell below 50% 26874 | -6/Hub_04(d) | Entered Factory 26874 | -5/Factory | Evolved 2 slots: Power x1, Propulsion x1 27196 | -5/Factory | Discovered new exit (range 10) 27231 | -5/Factory | Identified exit to Factory 27380 | -5/Factory | Build established: Scavenger-Mutant 27646 | -5/Factory | Entered another Factory area 27646 | -4/Factory | Evolved 2 slots: Power x1, Utility x1 27706 | -4/Factory | Build established: Hauler-Mutant 27754 | -4/Factory | Identified exit to Upper Caves 27754 | -4/Factory | Identified exit to Armory 27960 | -4/Factory | Lost 3 parts (2n1u) 28113 | -4/Factory | Repaired Reactive Plating 28150 | -4/Factory | Spotted B-86 Titan 28246 | -4/Factory | Repaired Mak. System Restoration Module? 28299 | -4/Factory | Build established: Scavenger-Mutant 28392 | -4/Factory | Discovered new exit (range 6) 28434 | -4/Factory | Repaired Centrium Medium Armor Plating 28750 | -4/Factory | Entered Upper Caves 28751 | -4/Upper Caves | Encountered a Warlord checkpoint 28806 | -4/Upper Caves | Build established: Hauler-Mutant 28967 | -4/Upper Caves | Attracted the attention of an 0b10 checkpoint 29135 | -4/Upper Caves | Learned Research garrison access intel 29338 | -4/Upper Caves | Found Alien Artifact 30313 | -4/Upper Caves | Identified Dimensional Node Initializer 30313 | -4/Upper Caves | Initialized slip node 30437 | -4/Upper Caves | Identified exit to Upper Caves 30993 | -4/Upper Caves | Entered another Upper Caves area 30993 | -4/Upper Caves | Discovered new exit (range 7) 31003 | -4/Upper Caves | Identified exit to Research 31717 | -4/Upper Caves | Attracted the attention of an 0b10 outpost 31775 | -4/Upper Caves | Destroyed 10 combat bots 31793 | -4/Upper Caves | Discovered new exit (range 15) 32193 | -4/Upper Caves | Identified exit to Zhirov 32695 | -4/Upper Caves | Entered Research 32695 | -3/Research | Accompanied by 2 allies 32695 | -3/Research | Evolved 2 slots: Utility x2 32696 | -3/Research | Loaded intel: 4 garrison access locations 32800 | -3/Research | P-80 Master assimilated allied Warrior 7a 33105 | -3/Research | Spotted B-86 Titan 33126 | -3/Research | Build established: Scavenger-Mutant 33175 | -3/Research | Befriended a Behemoth using the annoying Tinkerer's hack 33180 | -3/Research | Revealed the true nature of CR-A16's Pointy Stick 33200 | -3/Research | Lost 3 parts (2n1u) 33216 | -3/Research | P-80 Master assimilated allied B-86 Titan 33221 | -3/Research | Destroyed B-86 Titan 33243 | -3/Research | System corruption reached 10% 33748 | -3/Research | Discovered new exit (range 16) 33798 | -3/Research | Identified exit to Quarantine 33800 | -3/Research | Entered Quarantine 33809 | -3/Quarantine | Found Alien Artifact 33809 | -3/Quarantine | Identified Core Reset Matrix 33809 | -3/Quarantine | Used Core Reset Matrix 33813 | -3/Quarantine | Detected hypermatrix surge 33813 | -3/Quarantine | Sensed 15 artifacts in vicinity 33846 | -3/Quarantine | Found Matter Drive 33937 | -3/Quarantine | Found Subatomic Replicator 33971 | -3/Quarantine | Found Sigix Broadsword 34115 | -3/Quarantine | Build established: Hauler-Mutant 34146 | -3/Quarantine | Found Hpw. Transdimensional Reconstructor 34161 | -3/Quarantine | Cryocooling Duct disabled 34176 | -3/Quarantine | Ambient heat levels rising (+20) 34176 | -3/Quarantine | Non-combat units ordered to evacuate 34418 | -3/Quarantine | Met incapacitated Sigix Warrior 34418 | -3/Quarantine | Lockdown squad dispatched 34437 | -3/Quarantine | Acquired the access code to the Sigix quarantine chamber 34440 | -3/Quarantine | Unlocked Sigix quarantine chamber 34556 | -3/Quarantine | Found Core Cannon 34575 | -3/Quarantine | Build established: Scavenger-Mutant 34611 | -3/Quarantine | Found Phase Armor 34639 | -3/Quarantine | Discovered new exit (range 12) 34659 | -3/Quarantine | Identified exit to Research 34661 | -3/Quarantine | Entered Research 34661 | -2/Research | Evolved 2 slots: Propulsion x2 34868 | -2/Research | Identified exit to DSF 34871 | -2/Research | Entered DSF 34906 | -2/DSF | Additional patrols routed to DSF 34939 | -2/DSF | Discovered new exit (range 13) 34954 | -2/DSF | Identified exit to Access 34955 | -2/DSF | Entered Access 34955 | -1/Access | Evolved 2 slots: Utility x2 34998 | -1/Access | Build established: Hauler-Mutant 35920 | -1/Access | Spotted B-99 Colossus 35923 | -1/Access | Spotted B-99 Colossus 36451 | -1/Access | Discovered new exit (range 7) 36500 | -1/Access | Destroyed B-99 Colossus 36587 | -1/Access | Destroyed B-99 Colossus 36705 | -1/Access | Used Subatomic Replicator to replicate Sigix Containment Pod 36773 | -1/Access | Identified exit to Surface 36774 | *** | Destroyed 0b10! Last Messages --------------- reinforcements to Terminal A011. 36685_ Destroyed Unknown Hover Unit. 36694_ P-80 Master destroyed. 36704_ Dropped Sigix Containment Pod. 36705_ Replicated Sigix Containment Pod. 36706_ Sigix Containment Pod: "Completely unsanctioned use of that technology." 36706_ Sigix Containment Pod: "I agree." 36706_ Acquired Sigix Containment Pod. 36712_ Acquired 10 matter. 36738_ U-05 Engineer builds a Reinforced Barrier. 36747_ Acquired 10 matter. 36755_ System corrupted: Heat flow error (+155). 36755_ Sneak attack on U-05 Engineer. 36755_ Destroyed Unknown Engine. 36755_ Destroyed Wheel. 36755_ ALERT: Construction progress impeded, dispatching reinforcements to local area. 36758_ U-05 Engineer destroyed. 36773_ EXIT=IDENTIFIED: SURFACE Map ----- +----------------------------------------------------+ | ????# !! #!=! "T #?????????# #? ? | | ????# ##%####### #?????????# #? " ?? | | ????# ??#=#?????#####"#????????# # """ ? | | ????# ?##*##?????????##????????# # """ | | ????####+##### #???????????????????# + " | | %#????????############ # | | ??????######## % #????????# % ## # ! | | ?????????######+####??????# =## ########## | | ?#???????# [= #??????# [=#!!! #???????? | | ?# ??????# #??????# !%%+!!% #???????? | | ##+####### #??????# =!#[* #???????? | | + #??????# !|#[= #???????? | | # #??????# ## ##???????? | | # #??????# ## #????????? | | """" / #??????############ #????????? | | """" # #?????????????????# #????????? | | """" ###########?????????????????#% #????????? | | """" #???????????????????????????# #????????? | | """" #???????????????????????????# #????????? | | """ "#??????????????#######?????# #????????? | | ##################### ####### #????????? | | # "!""= % #????????? | | % # =!!%!! ! #????????? | | ######+### % "[""! ##???????? | | ^ ! "!"" ##???????? | | " "" "@ ##???????? | | ^ % [ " "" "" ###??????? | | =!! " "" * | # #??????? | | ######/### *%!!" "" !%!%! [ ##???????? | | ?????????# ][! " "" ="" %!##???????? | | ?????????# ! """ """T % ##???????? | | ?????????##########?########## ## ###" ##???????? | | ?????????????????????????????######### ##???????? | | ?????????????????????????????????????# ##???????? | | ?????????????????????????????????????# #????????? | | ?????????????????????????????????????# #????????? | | ?????????????????????????????????????+ #????????? | | ?????????????????????????????????????# #????????? | | ?????????????????????????????????????# ????????? | | ?????????????????????????????????????# ????????? | | ?????????????????????????????????????? #????????? | | ?????????????????????????????????????? #????????? | | ?????????????????????????????????????? +????????? | | ?????????????????????????????????????? +????????? | | ?????????????????????????????????????? ?????????? | | ?????????????????????????????????????? ?????????? | | ?????????????????????????????????????? ?????????? | | ?????????????????????????????????????????????????? | | ?????????????????????????????????????????????????? | | ?????????????????????????????????????????????????? | +----------------------------------------------------+ Best States ------------- Heat Dissipation 105 Energy Generation 57 Energy Capacity 1250 Matter Stores 300 Matter Capacity 300 Sight Range 21 Robot Scan Range 16 Terrain Scan Density 10 Jamming Range 16 EM Shielding 3 Armor Coverage 1600 Resistance: KI 20 Resistance: EM 20 Weapon Cycling 20 Evasion (%) 42 Targeting Accuracy 8 Core Analysis 8 Offensive Hacking 14 Defensive Hacking 12 Authchip Count 1 Trap Extractor Capacity 4 Item Schematics ----------------- None Robot Schematics ------------------ None Fabricated ------------ Cargo Storage Unit | x1 | -6/Factory | Authchip Alien Tech Used ----------------- Dimensional Node Initializer Core Reset Matrix Sigix Broadsword Phase Armor Core Cannon Subatomic Replicator Matter Drive Achievements -------------- None Challenges ------------ None Game ------ Seed MultitargetingNeutrinoWand Manual? 0 Play Time 02:54:35 Cumulative 1490.7 hours Start 2024.03.02 @ 16:44:54 End 2024.03.02 @ 20:51:09 Sessions 5 Manual Loads 0 Difficulty Rogue Special Mode None Game No. 1034 Rogue 1030 Adventurer 4 Explorer 0 Win Type 3 Total 182 Types 133/11/12/8/2/1/3/8/4 Lore% 95 Gallery% 98 Achievement% 98 Wizard Run 0 Options --------- Layout 2 ASCII 0 Keyboard 1 Movement Vi Keybinds 0 Fullscreen 0 Font 24/Terminus Map View 59x48 Zoom Use 0% Tactical HUD 1 Map Filters NONE Filters NONE Steam 1 RUN: 3270c655-28d1-4d51-9943-61396d613e5c